bitfinex/quotes_BTCUSD_20260310
["timestamp","ask_amount","ask_price","bid_price","bid_amount"]
[1773135456384,0.07025672,71168.0,71157.0,0.00022]
[1773135456592,0.0002897,71180.0,71162.0,0.03726738]
[1773135456593,0.07024935,71176.0,71162.0,0.03726738]
[1773135456892,0.07024935,71176.0,71163.0,0.46039179]
[1773135457117,0.03699998,71174.0,71158.0,0.07026518]
[1773135457320,0.42892536,71171.0,71159.0,0.00144]
[1773135458124,0.42892536,71171.0,71159.0,0.42312441]
[1773135458528,0.07025432,71170.0,71160.0,0.07026419]
[1773135458729,0.07025432,71170.0,71161.0,0.00144]
[1773135459253,0.07025432,71171.0,71161.0,0.00144]
[1773135459472,0.07025432,71171.0,71161.0,0.42312441]
[1773135459897,0.45829166,71170.0,71161.0,0.00144]
[1773135460057,0.42892536,71168.0,71161.0,0.00144]
[1773135460265,0.42892536,71168.0,71160.0,1.0]
[1773135460650,0.49918264,71167.0,71160.0,1.07026368]
[1773135461070,0.42892536,71167.0,71160.0,1.07026368]
[1773135461501,0.42892536,71167.0,71160.0,1.0]
[1773135461703,0.42892536,71167.0,71160.0,1.07026388]
[1773135461901,0.42992536,71167.0,71160.0,1.07026388]
[1773135462055,0.001,71167.0,71160.0,1.07026388]
[1773135463157,0.0996226,71168.0,71160.0,1.07026388]
[1773135464232,0.0996226,71168.0,71160.0,1.07026365]
[1773135464427,0.0996226,71168.0,71160.0,1.0]
[1773135464814,0.52854796,71168.0,71160.0,1.0]
[1773135465231,0.0293663,71165.0,71157.0,1e-08]
[1773135465426,0.0293663,71163.0,71157.0,1e-08]
[1773135465631,0.42892536,71163.0,71157.0,1e-08]
[1773135465859,0.42892536,71160.0,71150.0,0.07072404]
[1773135466092,0.42892536,71160.0,71145.0,0.42168441]
[1773135466093,0.42892536,71158.0,71145.0,0.42168441]
[1773135466449,0.45892536,71157.0,71145.0,0.42168441]
[1773135466649,0.03,71155.0,71144.0,0.07027991]
[1773135467050,0.48829166,71155.0,71144.0,0.07027991]
[1773135467263,0.03,71153.0,71144.0,1e-08]
[1773135467801,0.03,71153.0,71144.0,0.07027998]
[1773135468205,0.03,71153.0,71144.0,1e-08]
[1773135468400,0.03,71151.0,71144.0,1e-08]
[1773135469909,0.03,71150.0,71144.0,1e-08]
[1773135470269,0.42892536,71155.0,71144.0,1e-08]
[1773135470466,0.07027011,71154.0,71144.0,1e-08]
[1773135470691,0.48501769,71154.0,71144.0,1e-08]
[1773135471039,0.03,71153.0,71144.0,1e-08]
[1773135471828,0.03,71151.0,71144.0,1e-08]
[1773135472632,0.10027314,71151.0,71144.0,1e-08]
[1773135473960,0.03,71151.0,71144.0,1e-08]
[1773135474464,0.07025287,71172.0,71145.0,0.03024301]
[1773135474609,0.07048037,71175.0,71149.0,0.03024301]
[1773135474941,0.07047938,71175.0,71153.0,0.03024301]
[1773135475143,0.0017297,71180.0,71144.0,1e-08]
[1773135475144,0.00144,71174.0,71155.0,0.03024301]
[1773135475510,0.03,71179.0,71161.0,0.51698148]
[1773135475674,0.03,71179.0,71164.0,0.41611221]
[1773135475850,0.03,71179.0,71166.0,0.41611221]
[1773135476053,0.03,71173.0,71152.0,0.41611221]
[1773135476255,0.41474758,71168.0,71152.0,0.44635522]
[1773135476456,0.44474758,71165.0,71153.0,0.07171071]
[1773135476656,0.44474758,71165.0,71153.0,0.07027071]
[1773135477028,0.44474758,71165.0,71146.0,0.07027768]
[1773135477029,0.05817219,71160.0,71144.0,0.07027999]
[1773135477244,0.37707901,71158.0,71144.0,1e-08]
[1773135477481,0.37685901,71155.0,71144.0,1e-08]
[1773135478157,0.03,71151.0,71144.0,1e-08]
[1773135478563,0.03,71149.0,71144.0,1e-08]
[1773135479196,0.03,71149.0,71138.0,0.48783789]
[1773135479612,0.03,71149.0,71138.0,0.41611221]
[1773135479956,0.03,71147.0,71137.0,0.00022]
[1773135480160,0.03,71147.0,71138.0,0.07028592]
[1773135480580,0.1002777,71147.0,71138.0,0.07028592]
[1773135481878,0.44825061,71147.0,71138.0,0.07028592]
[1773135482324,0.44925061,71147.0,71138.0,0.07028592]
[1773135482868,0.03,71146.0,71140.0,0.03024301]
[1773135483059,0.03,71146.0,71140.0,0.44635522]
[1773135483495,0.03,71146.0,71140.0,0.41611221]
[1773135483700,0.03,71146.0,71137.0,0.07050683]
[1773135483877,0.03,71146.0,71138.0,0.00022]
[1773135484078,0.3724761,71146.0,71138.0,0.00022]
[1773135484489,0.39985359,71146.0,71138.0,0.00022]
[1773135485244,0.03,71145.0,71139.0,0.42729514]
[1773135486201,0.03,71144.0,71139.0,0.42729514]
[1773135486751,0.03,71144.0,71138.0,0.07050525]
[1773135487073,0.03,71144.0,71138.0,0.00022]
[1773135487308,0.10028027,71144.0,71138.0,0.00022]
[1773135487904,0.03,71142.0,71136.0,1.28e-06]
[1773135488113,0.36581869,71142.0,71136.0,1.28e-06]
[1773135488285,0.36581869,71142.0,71133.0,0.07051054]
[1773135488501,0.03,71140.0,71133.0,0.00022]
[1773135489466,0.10028476,71140.0,71133.0,0.00022]
[1773135490262,0.10028476,71140.0,71131.0,0.07029091]
[1773135490560,0.03,71142.0,71135.0,0.42729514]
[1773135490783,0.03,71142.0,71135.0,0.45353647]
[1773135491516,0.10028294,71142.0,71135.0,0.42729514]
[1773135491760,0.10028294,71142.0,71135.0,0.49758373]
[1773135491967,0.10028294,71142.0,71135.0,0.07028859]
[1773135492619,0.11183298,71169.0,71137.0,0.42729514]
[1773135492822,0.00144,71165.0,71140.0,0.42729514]
[1773135493123,0.14017381,71169.0,71146.0,0.42729514]
[1773135493433,0.00023,71175.0,71152.0,0.02624133]
[1773135493639,0.00023,71175.0,71156.0,0.02624133]
[1773135493844,0.0002,71178.0,71156.0,0.02624133]
[1773135493845,0.0302,71178.0,71156.0,0.02624133]
[1773135494064,0.10188672,71178.0,71159.0,0.42729514]
[1773135494414,0.10188672,71178.0,71164.0,0.02624133]
[1773135494677,0.43841038,71177.0,71151.0,0.07027308]
[1773135494811,0.03,71168.0,71152.0,0.45353647]
[1773135495069,0.03,71168.0,71153.0,0.45353647]
[1773135495235,0.46841038,71168.0,71150.0,0.00023]
[1773135495415,0.00144,71170.0,71143.0,0.07028009]
[1773135495416,0.03,71160.0,71145.0,0.070279]
[1773135495627,0.46841038,71156.0,71144.0,0.07027946]
[1773135496030,0.46841038,71156.0,71142.0,0.43820951]
[1773135496223,0.46841038,71156.0,71144.0,0.070279]
[1773135496623,0.46841038,71156.0,71143.0,0.070279]
[1773135497721,0.03,71154.0,71143.0,0.070279]
[1773135498916,0.03,71152.0,71143.0,0.070279]
[1773135499272,0.46841038,71152.0,71140.0,0.07028336]
[1773135499472,0.03,71150.0,71140.0,0.07028336]
[1773135499688,0.10027857,71146.0,71134.0,0.07028987]
[1773135499944,0.10171857,71146.0,71134.0,0.07028987]
[1773135504103,0.10171857,71146.0,71134.0,0.07050987]
[1773135504316,0.10171857,71146.0,71134.0,0.00022]
[1773135504465,0.54012895,71146.0,71134.0,0.00022]
[1773135504673,0.46841038,71144.0,71134.0,0.07050979]
[1773135504993,0.03,71142.0,71134.0,0.00022]
[1773135505208,0.46841038,71142.0,71134.0,0.00022]
[1773135506136,0.03144,71141.0,71134.0,0.49780483]
[1773135506278,0.10172313,71141.0,71134.0,0.49780483]
[1773135506477,0.10172313,71141.0,71134.0,0.42751514]
[1773135506807,0.10172313,71141.0,71134.0,0.07050934]
[1773135506808,0.10172308,71141.0,71134.0,0.07050934]
[1773135508105,0.03,71140.0,71134.0,0.07050934]
[1773135509135,0.03,71139.0,71134.0,0.07050934]
[1773135509343,0.03,71139.0,71134.0,0.49780448]
[1773135509923,0.03,71139.0,71134.0,0.07050934]
[1773135510169,0.03,71138.0,71134.0,0.07050934]
[1773135510566,0.03,71138.0,71134.0,0.0705098]
[1773135511189,0.07028357,71141.0,71130.0,0.00022]
[1773135511190,0.03,71137.0,71130.0,0.00022]
[1773135511619,0.03,71137.0,71121.0,0.16632389]
[1773135511756,0.03,71135.0,71118.0,0.42729514]
[1773135511954,0.03,71135.0,71122.0,0.42729514]
[1773135512237,0.07028493,71139.0,71124.0,0.42729514]
[1773135512238,0.03,71133.0,71124.0,0.42729514]
[1773135512412,0.03,71133.0,71126.0,0.42729514]
[1773135512906,0.03,71133.0,71122.0,0.07030137]
[1773135513111,0.03,71151.0,71124.0,0.02624133]
[1773135513292,0.17036409,71151.0,71127.0,0.42729514]
[1773135513490,0.03,71149.0,71131.0,0.5325496]
[1773135513701,0.00144,71155.0,71134.0,0.41334323]
[1773135513887,0.00144,71155.0,71132.0,0.00144]
[1773135513888,0.07170918,71155.0,71138.0,0.41334323]
[1773135514088,0.07026918,71155.0,71141.0,0.07028295]
[1773135514289,0.07026918,71155.0,71142.0,0.41478323]
[1773135514500,0.03,71154.0,71142.0,0.41478323]
[1773135514661,0.03,71154.0,71142.0,0.41334323]
[1773135515023,0.05563494,71152.0,71139.0,0.00144]
[1773135515225,0.00023,71150.0,71139.0,0.00144]
[1773135515533,0.03023,71150.0,71139.0,0.00144]
[1773135515684,0.03167,71150.0,71138.0,0.41478323]
[1773135516126,0.03,71148.0,71138.0,0.41478323]
[1773135516525,0.03,71148.0,71138.0,0.48506875]
[1773135516880,0.48363071,71146.0,71134.0,0.07028891]
[1773135517081,0.45799577,71146.0,71133.0,0.07029031]
[1773135517283,0.48363071,71146.0,71133.0,0.07029031]
[1773135517484,0.03,71144.0,71128.0,0.41334323]
[1773135517702,0.45799577,71142.0,71128.0,0.41334323]
[1773135517910,0.03,71140.0,71128.0,0.41334323]
[1773135518333,0.03,71138.0,71128.0,0.41478323]
[1773135518734,0.03,71138.0,71126.0,0.00022]
[1773135518735,0.42799577,71137.0,71126.0,0.00022]
[1773135518975,0.03,71134.0,71122.0,0.06118459]
[1773135519155,0.03,71134.0,71123.0,0.00144]
[1773135519537,0.03,71134.0,71122.0,0.06118459]
[1773135519738,0.03,71134.0,71123.0,0.00144]
[1773135520027,0.03,71135.0,71123.0,0.00144]
[1773135520250,0.00144,71136.0,71118.0,0.02646133]
[1773135520251,0.03,71131.0,71118.0,0.02646133]
[1773135520417,0.03,71129.0,71118.0,0.41500323]
[1773135520575,0.48346094,71129.0,71118.0,0.00022]
[1773135522471,0.03,71127.0,71118.0,0.00022]
[1773135523845,0.03,71125.0,71116.0,0.07030684]
[1773135524048,0.0702958,71128.0,71113.0,0.07030985]
[1773135524049,0.48346094,71123.0,71113.0,0.07030985]
[1773135524249,0.48346094,71123.0,71114.0,0.07030964]
[1773135524450,0.48346094,71123.0,71113.0,0.07030985]
[1773135524451,0.55376211,71123.0,71113.0,0.07030985]
[1773135524777,0.03,71123.0,71114.0,0.02381356]
[1773135525008,0.10029876,71125.0,71116.0,0.41334323]
[1773135525220,0.10029876,71125.0,71118.0,0.41334323]
[1773135525446,0.10029876,71125.0,71112.0,0.07030964]
[1773135525447,0.45799577,71121.0,71111.0,1e-08]
[1773135525650,0.03,71119.0,71111.0,1e-08]
[1773135525865,0.48346094,71119.0,71111.0,1e-08]
[1773135526565,0.00144,71144.0,71113.0,0.02381356]
[1773135526794,0.00144,71144.0,71117.0,0.02381356]
[1773135527023,0.44936837,71139.0,71120.0,0.42483055]
[1773135527240,0.03,71138.0,71122.0,0.43422168]
[1773135527461,0.03,71138.0,71123.0,0.00144]
[1773135527715,0.03,71138.0,71124.0,0.43422168]
[1773135527920,0.03,71136.0,71124.0,0.43422168]
[1773135528509,0.03,71132.0,71119.0,0.07030451]
[1773135528747,0.05590734,71132.0,71115.0,0.4574619]
[1773135528897,0.46688065,71132.0,71117.0,0.43422168]
[1773135529061,0.46688065,71132.0,71117.0,0.4574619]
[1773135529264,0.46688065,71132.0,71119.0,0.43422168]
[1773135529265,0.46544065,71132.0,71119.0,0.43422168]
[1773135529466,0.46544065,71132.0,71114.0,0.07174872]
[1773135529467,0.03,71131.0,71122.0,0.02324022]
[1773135529664,0.00144,71134.0,71125.0,0.43422168]
[1773135529993,0.00144,71134.0,71127.0,0.43422168]
[1773135530218,0.07028647,71138.0,71129.0,0.43422168]
[1773135530411,0.07028647,71138.0,71126.0,0.00144]
[1773135530412,0.07027505,71149.0,71134.0,0.43422168]
[1773135530613,0.03,71148.0,71137.0,0.02324022]
[1773135530810,0.07048235,71151.0,71134.0,0.43422168]
[1773135531012,0.07026913,71155.0,71136.0,0.02324022]
[1773135531191,0.07026913,71155.0,71139.0,0.43422168]
[1773135531392,0.07026913,71155.0,71141.0,0.4574619]
[1773135531606,0.03,71154.0,71141.0,0.4589019]
[1773135532358,0.03144,71154.0,71141.0,0.4589019]
[1773135533644,0.03,71152.0,71141.0,0.4589019]
[1773135534700,0.03,71152.0,71142.0,0.02324022]
[1773135535002,0.03,71152.0,71143.0,0.43422168]
[1773135535205,0.03,71148.0,71128.0,0.00144]
[1773135535402,0.43544065,71146.0,71129.0,0.02468022]
[1773135535679,0.03,71139.0,71128.0,0.00144]
[1773135536203,0.03,71139.0,71127.0,0.43422168]
[1773135536400,0.03,71139.0,71128.0,0.00144]
[1773135536571,0.03,71139.0,71127.0,0.43422168]
[1773135536791,0.03,71139.0,71128.0,0.00144]
[1773135537040,0.03,71139.0,71128.0,0.43566168]
[1773135537707,0.44097331,71137.0,71127.0,0.00144]
[1773135537925,0.03,71137.0,71126.0,0.43422168]
[1773135539206,0.03,71137.0,71126.0,0.4574619]
[1773135539412,0.07028581,71139.0,71127.0,0.02324022]
[1773135539621,0.07028581,71139.0,71130.0,0.43422168]
[1773135540177,0.07028057,71144.0,71131.0,0.02324022]
[1773135540404,0.03,71154.0,71136.0,0.02324022]
[1773135540624,0.03,71154.0,71139.0,0.43422168]
[1773135540832,0.05446734,71151.0,71137.0,0.00144]
[1773135541033,0.03,71149.0,71138.0,0.43422168]
[1773135541275,0.03,71149.0,71140.0,0.43422168]
[1773135541480,0.03,71149.0,71142.0,0.43422168]
[1773135541861,0.03,71147.0,71142.0,0.43422168]
[1773135542184,0.03,71147.0,71137.0,0.07172669]
[1773135542391,0.03,71147.0,71138.0,0.43422168]
[1773135542907,0.44241331,71147.0,71137.0,0.00144]
[1773135543053,0.44241331,71147.0,71131.0,0.07029243]
[1773135543054,0.44097331,71145.0,71133.0,0.00144]
[1773135543261,0.00144,71147.0,71130.0,0.02324022]
[1773135543262,0.03,71143.0,71130.0,0.02324022]
[1773135543468,0.00144,71147.0,71134.0,0.02324022]
[1773135543663,0.00144,71147.0,71135.0,0.43110968]
[1773135543866,0.07027801,71146.0,71135.0,0.47815771]
[1773135544087,0.07027801,71146.0,71137.0,0.40786946]
[1773135544289,0.03,71146.0,71139.0,0.40786946]
[1773135544876,0.00144,71153.0,71141.0,0.40786946]
[1773135545182,0.00144,71154.0,71145.0,0.40786946]
[1773135545386,0.03144,71154.0,71145.0,0.40786946]
[1773135545713,0.07026913,71155.0,71147.0,0.43110968]
[1773135546254,0.001,71154.0,71147.0,0.43110968]
[1773135546455,0.07026913,71155.0,71147.0,0.43110968]
[1773135547312,0.07026913,71155.0,71147.0,0.50138629]
[1773135547517,0.07026913,71155.0,71147.0,0.43110968]
[1773135549340,0.07026913,71155.0,71147.0,0.27815749]
[1773135549776,0.07026913,71155.0,71147.0,0.32519414]
[1773135550062,0.07026913,71155.0,71147.0,0.25491727]
[1773135551785,0.07026913,71155.0,71146.0,0.02176745]
[1773135552339,0.07026913,71155.0,71143.0,0.40930946]
[1773135552553,0.07026913,71155.0,71143.0,0.40786946]
[1773135553560,0.07026913,71155.0,71143.0,0.47815003]
[1773135554201,0.07026913,71155.0,71143.0,0.49991748]
[1773135554831,0.03,71155.0,71144.0,0.02176745]
[1773135555003,0.07025489,71170.0,71146.0,0.02176745]
[1773135555218,0.00144,71169.0,71150.0,0.02176745]
[1773135555455,0.00144,71169.0,71153.0,0.40786946]
[1773135555679,0.00144,71169.0,71157.0,0.40786946]
[1773135555882,0.03144,71169.0,71157.0,0.42963691]
[1773135556260,0.03,71169.0,71157.0,0.42963691]
[1773135556607,0.00144,71168.0,71157.0,0.42963691]
[1773135557175,0.03,71167.0,71157.0,0.49990351]
[1773135558399,0.03,71167.0,71157.0,0.47813606]
[1773135558605,0.03,71167.0,71160.0,0.02176745]
[1773135558804,0.03,71167.0,71160.0,0.42963691]
[1773135559221,0.10025826,71166.0,71156.0,0.07026742]
[1773135559445,0.10025826,71166.0,71156.0,0.40786946]
[1773135559779,0.10025826,71166.0,71156.0,0.42963691]
[1773135561930,0.10025826,71166.0,71156.0,0.49990486]
[1773135563698,0.10025826,71166.0,71156.0,0.50134486]
[1773135565315,0.10025826,71166.0,71156.0,0.00022]
[1773135565525,0.03,71164.0,71156.0,0.00022]
[1773135565862,0.4377382,71160.0,71149.0,0.00144]
[1773135566215,0.4377382,71160.0,71148.0,0.40808946]
[1773135566434,0.4377382,71160.0,71148.0,0.40952946]
[1773135566963,0.03,71158.0,71148.0,0.00022]
[1773135567127,0.4377382,71158.0,71148.0,0.00022]
[1773135567740,0.03,71156.0,71148.0,0.07049564]
[1773135568129,0.03,71156.0,71148.0,0.00022]
[1773135568728,0.03,71156.0,71148.0,0.07049566]
[1773135568981,0.03,71156.0,71149.0,0.42963691]
[1773135569835,0.03,71154.0,71150.0,0.02176745]
[1773135570050,0.03,71154.0,71150.0,0.40786946]
[1773135570276,0.03,71154.0,71148.0,0.00022]
[1773135571882,0.1002711,71154.0,71142.0,0.00144]
[1773135572080,0.5080093,71154.0,71142.0,0.00144]
[1773135572280,0.1002711,71154.0,71144.0,0.40786946]
[1773135572518,0.1002711,71154.0,71144.0,0.42963691]
[1773135572695,0.1002711,71154.0,71145.0,0.42963691]
[1773135573168,0.1002711,71154.0,71145.0,0.40786946]
[1773135573369,0.5080093,71154.0,71143.0,0.00144]
[1773135574284,0.03,71153.0,71143.0,0.44623569]
[1773135574484,0.07026814,71156.0,71145.0,0.37595482]
[1773135574683,0.07026814,71156.0,71145.0,0.39772227]
[1773135574898,0.07026814,71156.0,71146.0,0.02176745]
[1773135575128,0.07026814,71156.0,71147.0,0.37595482]
[1773135575338,0.07026814,71156.0,71144.0,0.00144]
[1773135575530,0.03,71155.0,71143.0,0.46944314]
[1773135576319,0.03,71153.0,71143.0,0.46944314]
[1773135576525,0.03,71153.0,71143.0,0.39916227]
[1773135576718,0.42594843,71153.0,71143.0,0.0002553]
[1773135577905,0.03,71151.0,71139.0,0.000195]
[1773135578178,0.42594843,71149.0,71139.0,0.001635]
[1773135578384,0.03,71147.0,71139.0,0.001635]
[1773135579848,0.03,71147.0,71143.0,0.00022]
[1773135580450,0.07026715,71159.0,71139.0,0.07191989]
[1773135580702,0.07026715,71157.0,71143.0,0.01791871]
[1773135580902,0.07026715,71157.0,71145.0,0.01791871]
[1773135581107,0.07026715,71157.0,71146.0,0.37595482]
[1773135581311,0.07025965,71165.0,71145.0,0.00144]
[1773135581312,0.07045778,71167.0,71149.0,0.01791871]
[1773135581511,0.00048,71171.0,71152.0,0.37595482]
[1773135581736,0.07073388,71171.0,71156.0,0.37595482]
[1773135581918,0.07073388,71171.0,71159.0,0.01791871]
[1773135582087,0.07073388,71171.0,71159.0,0.39387353]
[1773135582410,0.03,71170.0,71161.0,0.46413673]
[1773135583787,0.03,71169.0,71161.0,0.46413673]
[1773135584849,0.03,71168.0,71161.0,0.46413673]
[1773135585623,0.03,71168.0,71161.0,0.0702632]
[1773135585835,0.03,71168.0,71160.0,0.0702632]
[1773135586042,0.03,71167.0,71161.0,0.0702632]
[1773135587021,0.0002,71169.0,71161.0,0.0702632]
[1773135588006,0.03,71168.0,71160.0,0.0702632]
[1773135589144,0.03,71167.0,71160.0,0.0702632]
[1773135589902,0.03,71167.0,71159.0,0.45829421]
[1773135589903,0.03,71167.0,71159.0,0.07026466]
[1773135590089,0.40329104,71167.0,71152.0,0.07027209]
[1773135590340,0.03,71159.0,71146.0,0.07027741]
[1773135590541,0.03,71159.0,71148.0,0.38946955]
[1773135590718,0.03,71159.0,71149.0,0.01868118]
[1773135591456,0.07026519,71159.0,71151.0,0.38802955]
[1773135591588,0.07025902,71166.0,71154.0,0.01868118]
[1773135591788,0.07025902,71166.0,71155.0,0.38802955]
[1773135592373,0.03,71165.0,71155.0,0.38802955]
[1773135593222,0.03,71163.0,71155.0,0.00144]
[1773135593420,0.10026192,71163.0,71155.0,0.07170849]
[1773135593839,0.03,71163.0,71155.0,0.07170849]
[1773135598152,0.07169851,71166.0,71157.0,0.36934837]
[1773135598353,0.07025851,71166.0,71157.0,0.38802955]
[1773135598551,0.0002,71169.0,71157.0,0.38802955]
[1773135598552,0.0002,71169.0,71157.0,0.36934837]
[1773135598755,0.00164,71169.0,71161.0,0.36934837]
[1773135599071,0.07045559,71169.0,71161.0,0.38802955]
[1773135599252,0.07045559,71169.0,71162.0,0.07026221]
[1773135599253,0.03,71168.0,71162.0,0.07026221]
[1773135600540,0.391768,71167.0,71147.0,0.36934837]
[1773135600764,0.04847696,71164.0,71148.0,0.02012118]
[1773135600899,0.40329104,71162.0,71148.0,0.02012118]
[1773135601101,0.0002,71169.0,71150.0,0.01868118]
[1773135601365,0.0002,71178.0,71162.0,0.36934837]
[1773135601565,0.07045661,71178.0,71163.0,0.49130831]
[1773135601772,0.00023,71200.0,71170.0,0.36934837]
[1773135601973,0.00023,71200.0,71163.0,0.48986831]
[1773135601974,0.37329104,71198.0,71182.0,0.36934837]
[1773135602192,0.37329104,71198.0,71163.0,0.48986831]
[1773135602193,0.03,71195.0,71183.0,0.02012118]
[1773135602318,0.03,71193.0,71183.0,0.02012118]
[1773135602765,0.03,71193.0,71183.0,0.00144]
[1773135602973,0.07042132,71199.0,71163.0,0.49086831]
[1773135602974,0.00144,71194.0,71181.0,0.01868118]
[1773135603281,0.00144,71194.0,71187.0,0.36934837]
[1773135603512,0.07166572,71199.0,71187.0,0.36934837]
[1773135603710,0.07022572,71199.0,71187.0,0.36934837]
[1773135603911,0.03,71198.0,71188.0,0.01868118]
[1773135604117,0.03,71198.0,71190.0,0.01868118]
[1773135604270,0.0002,71201.0,71193.0,0.39301957]
[1773135604480,0.0002,71201.0,71193.0,0.41170075]
[1773135604678,0.07021621,71209.0,71197.0,0.01868118]
[1773135605020,0.03,71209.0,71200.0,0.01868118]
[1773135605221,0.03,71209.0,71201.0,0.07022373]
[1773135605431,0.03,71209.0,71202.0,0.01868118]
[1773135606024,0.03,71208.0,71202.0,0.01868118]
[1773135606970,0.03,71210.0,71201.0,0.07022373]
[1773135608450,0.03,71210.0,71200.0,0.07022373]
[1773135608750,0.0302,71210.0,71200.0,0.07022373]
[1773135609942,0.03,71209.0,71200.0,0.07022373]
[1773135610153,0.03,71209.0,71201.0,0.40857617]
[1773135610475,0.03,71209.0,71202.0,0.07022274]
[1773135610854,0.0002,71210.0,71203.0,0.39301957]
[1773135611070,0.0002,71210.0,71204.0,0.0155566]
[1773135611861,0.0302,71210.0,71204.0,0.0155566]
[1773135612067,0.0080069,71203.0,71195.0,0.07022873]
[1773135612271,0.0380069,71203.0,71196.0,0.00144]
[1773135612724,0.00144,71207.0,71199.0,0.0155566]
[1773135612933,0.00144,71207.0,71199.0,0.40857617]
[1773135613878,0.00144,71207.0,71201.0,0.39301957]
[1773135614108,0.0002,71210.0,71204.0,0.0155566]
[1773135614317,0.07020992,71215.0,71206.0,0.40857617]
[1773135614540,0.03,71214.0,71206.0,0.40857617]
[1773135615506,0.0002,71209.0,71203.0,0.00144]
[1773135615747,0.0002,71209.0,71190.0,0.07023403]
[1773135615748,0.4195355,71208.0,71199.0,0.00144]
[1773135616060,0.4195355,71208.0,71198.0,0.00144]
[1773135616293,0.40384781,71208.0,71198.0,0.00144]
[1773135616445,0.03,71208.0,71199.0,0.0702257]
[1773135616830,0.03,71206.0,71199.0,0.0155566]
[1773135617972,0.0002,71209.0,71202.0,0.39301957]
[1773135618171,0.00144,71212.0,71204.0,0.39301957]
[1773135618470,0.07020992,71215.0,71207.0,0.0155566]
[1773135618672,0.07020992,71215.0,71205.0,0.0702189]
[1773135618673,0.07020992,71215.0,71209.0,0.0155566]
[1773135618969,0.03,71214.0,71209.0,0.39301957]
[1773135619174,0.03,71214.0,71209.0,0.40857617]
[1773135620555,0.10021166,71214.0,71209.0,0.40857617]
[1773135621196,0.10021166,71214.0,71209.0,0.0155566]
[1773135622173,0.03,71213.0,71209.0,0.0155566]
[1773135622376,0.00048,71222.0,71211.0,0.0155566]
[1773135622575,0.00144,71221.0,71214.0,0.0155566]
[1773135622787,0.00043,71225.0,71216.0,0.0155566]
[1773135622985,0.07019641,71229.0,71219.0,0.39301957]
[1773135623189,0.03144,71228.0,71215.0,0.0155566]
[1773135623405,0.00144,71228.0,71215.0,0.0155566]
[1773135623610,0.00144,71228.0,71216.0,0.0155566]
[1773135624330,0.03144,71228.0,71216.0,0.0155566]
[1773135624540,0.03,71227.0,71218.0,0.07020697]
[1773135624883,0.03,71227.0,71219.0,0.39301957]
[1773135625091,0.0012642,71230.0,71222.0,0.39301957]
[1773135625480,0.00144,71238.0,71225.0,0.39301957]
[1773135625696,0.00144,71238.0,71227.0,0.0155566]
[1773135625932,0.37399781,71243.0,71227.0,0.39301957]
[1773135626119,0.04999695,71241.0,71227.0,0.39301957]
[1773135626332,0.37384781,71238.0,71219.0,0.39301957]
[1773135626527,0.42384476,71237.0,71219.0,0.39301957]
[1773135626672,0.10018923,71236.0,71222.0,0.39301957]
[1773135626877,0.15018618,71236.0,71222.0,0.39301957]
[1773135628624,0.15018618,71236.0,71224.0,0.46322062]
[1773135629308,0.03,71234.0,71224.0,0.46322062]
[1773135629931,0.37384781,71233.0,71214.0,0.07021003]
[1773135630148,0.08174602,71230.0,71215.0,0.39445957]
[1773135630325,0.03,71230.0,71215.0,0.39445957]
[1773135630520,0.03,71228.0,71216.0,0.07020894]
[1773135630766,0.03,71228.0,71217.0,0.39301957]
[1773135631649,0.07019569,71230.0,71217.0,0.39301957]
[1773135631650,0.03,71227.0,71217.0,0.39301957]
[1773135632189,0.07019418,71231.0,71217.0,0.39301957]
[1773135632391,0.12193932,71232.0,71217.0,0.39301957]
[1773135632596,0.07019514,71230.0,71218.0,0.07020697]
[1773135632797,0.03,71228.0,71217.0,0.07020697]
[1773135633001,0.08151745,71224.0,71217.0,0.00144]
[1773135633201,0.37384781,71225.0,71205.0,0.07043968]
[1773135633202,0.03,71218.0,71205.0,0.07043968]
[1773135633401,0.03,71218.0,71206.0,0.39301957]
[1773135633555,0.00144,71225.0,71217.0,0.001]
[1773135633771,0.00144,71225.0,71214.0,0.36913631]
[1773135633772,0.00144,71225.0,71215.0,0.00144]
[1773135634212,0.37372056,71224.0,71215.0,0.00144]
[1773135634513,0.08129819,71221.0,71215.0,0.00144]
[1773135634807,0.03,71219.0,71215.0,0.00144]
[1773135635028,0.03,71219.0,71209.0,0.07165582]
[1773135635235,0.03,71219.0,71206.0,0.00144]
[1773135635236,0.05129819,71213.0,71206.0,0.00144]
[1773135635381,0.03,71211.0,71206.0,0.00144]
[1773135635583,0.03,71209.0,71206.0,0.00144]
[1773135636743,0.03,71208.0,71206.0,0.00144]
[1773135636871,0.0702117,71214.0,71206.0,0.00144]
[1773135637731,0.08107866,71213.0,71206.0,0.00144]
[1773135638127,0.37372056,71210.0,71199.0,0.07022375]
[1773135638282,0.03,71203.0,71200.0,0.00144]
[1773135638488,0.42503905,71213.0,71200.0,0.00144]
[1773135638711,0.05131849,71212.0,71205.0,0.00022]
[1773135638916,0.05131849,71208.0,71202.0,0.00144]
[1773135639123,0.05131849,71208.0,71197.0,0.00022]
[1773135639124,0.37372056,71208.0,71197.0,0.00022]
[1773135639374,0.05131849,71207.0,71198.0,0.00144]
[1773135639577,0.03,71204.0,71198.0,0.00144]
[1773135639780,0.03,71204.0,71197.0,0.00022]
[1773135639959,0.37372056,71207.0,71199.0,0.00144]
[1773135639960,0.03,71202.0,71199.0,0.00144]
[1773135640325,0.08110283,71202.0,71200.0,0.00144]
[1773135640748,0.08110283,71202.0,71197.0,0.07044753]
[1773135640954,0.10021987,71205.0,71197.0,0.07044753]
[1773135641507,0.10021987,71205.0,71197.0,0.00022]
[1773135642406,0.03,71199.0,71191.0,0.07023358]
[1773135643191,0.46930807,71215.0,71193.0,0.36913631]
[1773135643393,0.03,71208.0,71193.0,0.36913631]
[1773135643611,0.08086888,71206.0,71193.0,0.36913631]
[1773135643909,0.05065308,71211.0,71193.0,0.10130897]
[1773135644111,0.05065308,71211.0,71194.0,0.36913631]
[1773135644463,0.0302419,71221.0,71200.0,0.1579183]
[1773135644667,0.10044604,71221.0,71201.0,0.36913631]
[1773135644864,0.0302419,71221.0,71201.0,0.36913631]
[1773135645070,0.0302419,71221.0,71203.0,0.36913631]